bitfinex/quotes_SOLUSD_20260306
["timestamp","ask_amount","ask_price","bid_price","bid_amount"]
[1772800276780,0.50859787,86.729,86.71,0.1]
[1772800277167,0.50859787,86.729,86.687,0.14216157]
[1772800277372,0.50859787,86.729,86.692,0.50538174]
[1772800277872,0.50859787,86.727,86.692,0.50538174]
[1772800278182,40.35605571,86.728,86.692,0.50538174]
[1772800278183,11.53030163,86.728,86.696,0.50538174]
[1772800278365,0.50859787,86.727,86.702,0.50538174]
[1772800278571,0.50859787,86.719,86.69,0.1]
[1772800278966,0.50859787,86.719,86.692,0.50538174]
[1772800279167,0.50859787,86.719,86.692,0.78970488]
[1772800279395,11.52910522,86.737,86.701,0.50538174]
[1772800279563,11.52910522,86.737,86.692,0.28432314]
[1772800279564,11.52910522,86.737,86.713,0.50538174]
[1772800279978,40.34163602,86.759,86.713,0.50538174]
[1772800280172,40.34163602,86.759,86.715,0.50538174]
[1772800281287,3.905083,86.75,86.715,0.50538174]
[1772800281472,0.50859787,86.729,86.691,0.50538174]
[1772800281661,0.50859787,86.729,86.645,4.82477569]
[1772800281662,0.50859787,86.709,86.652,102.9]
[1772800281866,0.50859787,86.707,86.676,0.50538174]
[1772800282084,0.50859787,86.707,86.674,0.50538174]
[1772800282483,0.50859787,86.707,86.664,28.84689261]
[1772800282484,0.50859787,86.707,86.676,0.50538174]
[1772800283191,40.3653642,86.708,86.667,0.50538174]
[1772800283192,0.50859787,86.699,86.667,0.50538174]
[1772800283564,0.50859787,86.699,86.669,52.34538174]
[1772800283873,0.50859787,86.699,86.67,0.50538174]
[1772800284180,11.53429144,86.698,86.67,0.50538174]
[1772800284488,0.50859787,86.697,86.67,0.50538174]
[1772800285278,11.5329612,86.708,86.673,0.50538174]
[1772800285681,0.50859787,86.707,86.673,0.50538174]
[1772800286373,0.50859787,86.705,86.673,0.50538174]
[1772800287987,0.50859787,86.705,86.674,0.50538174]
[1772800288389,0.50859787,86.705,86.67,11.53796028]
[1772800288390,0.50859787,86.703,86.67,11.53796028]
[1772800288587,0.50859787,86.703,86.669,51.84]
[1772800288588,3.39648513,86.7,86.669,51.84]
[1772800288782,0.50859787,86.699,86.669,51.84]
[1772800289185,0.50859787,86.689,86.66,0.1]
[1772800289790,0.31419432,86.679,86.66,0.1]
[1772800290492,0.31319881,86.677,86.66,0.1]
[1772800291285,11.53695286,86.678,86.66,0.1]
[1772800291685,11.53695286,86.678,86.66,0.59064805]
[1772800292087,11.53548893,86.689,86.66,0.59064805]
[1772800292282,40.37421125,86.689,86.66,0.59064805]
[1772800292778,0.31028036,86.721,86.663,0.49064805]
[1772800293092,0.31028036,86.709,86.663,0.49064805]
[1772800294200,40.3588478,86.722,86.663,0.49064805]
[1772800294201,0.30839017,86.699,86.663,0.49064805]
[1772800294386,0.30839017,86.689,86.66,0.1]
[1772800294784,0.30839017,86.687,86.66,0.1]
[1772800295101,0.30839017,86.687,86.631,28.8577152]
[1772800295102,0.30839017,86.679,86.641,0.49064805]
[1772800295484,0.30746133,86.669,86.632,0.49064805]
[1772800295685,3.70394646,86.66,86.632,0.49064805]
[1772800296598,8.83181662,86.66,86.632,0.49064805]
[1772800296801,0.30654315,86.649,86.617,12.0357258]
[1772800297103,8.52435529,86.63,86.604,0.70713823]
[1772800297280,8.52435529,86.63,86.605,0.49064805]
[1772800297606,0.30654315,86.639,86.606,0.49064805]
[1772800298010,0.30654315,86.639,86.583,0.42648471]
[1772800298011,8.52435529,86.62,86.592,0.53860759]
[1772800298596,8.52435529,86.62,86.584,0.53860759]
[1772800298794,8.52435529,86.59,86.556,0.53860759]
[1772800299013,11.54614416,86.609,86.556,0.53860759]
[1772800299204,11.54614416,86.609,86.562,0.53860759]
[1772800299391,8.52435529,86.6,86.562,0.53860759]
[1772800299591,40.41150457,86.609,86.562,0.53860759]
[1772800299784,8.52435529,86.59,86.562,0.53860759]
[1772800300008,8.52435529,86.6,86.562,0.53860759]
[1772800300704,11.54747745,86.599,86.563,11.55227984]
[1772800300916,11.54747745,86.599,86.564,0.53860759]
[1772800302594,8.52435529,86.59,86.564,0.53860759]
[1772800302803,11.54881104,86.589,86.564,0.53860759]
[1772800303810,11.54881104,86.589,86.564,12.09072601]
[1772800304218,11.54881104,86.589,86.564,0.53860759]
[1772800304600,8.52435529,86.6,86.565,11.55201293]
[1772800304812,8.52435529,86.6,86.566,0.53860759]
[1772800305020,11.54747745,86.599,86.566,0.53860759]
[1772800305618,40.41617108,86.599,86.566,0.53860759]
[1772800305821,8.52435529,86.59,86.566,0.53860759]
[1772800306514,8.52435529,86.59,86.543,0.42648471]
[1772800306515,11.54747745,86.599,86.568,0.53860759]
[1772800306711,11.54747745,86.599,86.534,49.91816865]
[1772800306712,11.54747745,86.599,86.559,0.53860759]
[1772800306913,8.52435529,86.62,86.563,0.53860759]
[1772800307104,8.52435529,86.63,86.569,0.53860759]
[1772800307301,40.40077568,86.632,86.573,0.53860759]
[1772800307507,11.54307876,86.632,86.581,0.53860759]
[1772800307712,11.54307876,86.632,86.591,0.53860759]
[1772800308702,8.52435529,86.62,86.585,0.53860759]
[1772800309114,8.52435529,86.61,86.577,0.53860759]
[1772800310205,40.40683914,86.619,86.577,0.53860759]
[1772800310916,8.52435529,86.61,86.577,0.53860759]
[1772800311229,8.52435529,86.59,86.55,0.53860759]
[1772800311399,8.52435529,86.58,86.55,0.53860759]
[1772800311996,8.52435529,86.6,86.551,0.14216157]
[1772800312203,8.52435529,86.6,86.552,0.53860759]
[1772800312399,8.52435529,86.59,86.552,0.53860759]
[1772800312831,8.52435529,86.6,86.552,0.53860759]
[1772800313214,8.52435529,86.59,86.554,0.53860759]
[1772800314501,8.52435529,86.6,86.556,0.53860759]
[1772800314816,8.52435529,86.6,86.562,0.53860759]
[1772800315524,11.54747745,86.599,86.564,0.53860759]
[1772800316206,28.86505235,86.61,86.566,0.53860759]
[1772800316527,37.38940764,86.61,86.572,0.53860759]
[1772800316826,8.52435529,86.62,86.572,0.53860759]
[1772800317824,8.52435529,86.62,86.564,0.28432314]
[1772800317825,8.52435529,86.62,86.574,0.53860759]
[1772800318404,40.39984301,86.634,86.576,0.53860759]
[1772800318604,8.52435529,86.63,86.581,0.14216157]
[1772800318805,8.52435529,86.63,86.582,0.53860759]
[1772800319624,11.54347851,86.629,86.584,0.53860759]
[1772800320409,8.52435529,86.64,86.586,0.53860759]
[1772800320614,11.54150109,86.644,86.593,0.14216157]
[1772800320810,46.13956809,86.694,86.606,0.53860759]
[1772800321011,8.52435529,86.67,86.621,0.48943946]
[1772800321513,8.52435529,86.67,86.604,0.50894642]
[1772800321514,0.19607435,86.649,86.604,0.50894642]
[1772800321732,11.54214614,86.639,86.606,0.50894642]
[1772800322935,11.54214614,86.639,86.608,0.50894642]
[1772800323515,0.19475313,86.638,86.608,0.50894642]
[1772800324918,11.54241259,86.637,86.608,0.50894642]
[1772800325326,0.1934621,86.636,86.608,0.50894642]
[1772800325835,0.1934621,86.673,86.61,0.50894642]
[1772800326130,0.1934621,86.669,86.612,0.50894642]
[1772800326848,0.1934621,86.669,86.618,0.14216157]
[1772800327149,11.53828402,86.668,86.623,0.50894642]
[1772800327333,11.53828402,86.668,86.629,0.50894642]
[1772800327517,11.53642047,86.682,86.637,0.50894642]
[1772800327721,11.53642047,86.682,86.641,0.50894642]
[1772800328118,11.53508974,86.692,86.641,0.50894642]
[1772800328330,11.53508974,86.692,86.611,0.50894642]
[1772800328331,0.19158061,86.659,86.611,0.50894642]
[1772800328530,0.19158061,86.649,86.611,0.50894642]
[1772800328729,0.19158061,86.649,86.565,46.20757273]
[1772800328730,0.50697076,86.639,86.591,11.54842632]
[1772800328947,9.03624411,86.63,86.589,11.54881104]
[1772800329141,0.50697076,86.63,86.589,11.54881104]
[1772800329747,0.50697076,86.63,86.59,0.42648471]
[1772800329923,0.50697076,86.63,86.589,11.54881104]
[1772800330125,0.50697076,86.63,86.59,0.42648471]
[1772800330426,40.39797778,86.638,86.59,0.28432314]
[1772800330737,40.90494854,86.638,86.591,0.50894642]
[1772800330932,40.90494854,86.638,86.601,0.50894642]
[1772800331120,40.90494854,86.638,86.602,11.54707743]
[1772800331328,0.50697076,86.637,86.603,0.50894642]
[1772800332326,40.39797778,86.638,86.603,0.50894642]
[1772800332639,11.54227936,86.638,86.603,0.50894642]
[1772800333336,40.39471405,86.645,86.605,0.50894642]
[1772800333529,11.54134687,86.645,86.61,0.14216157]
[1772800333720,11.54134687,86.645,86.611,0.50894642]
[1772800333925,0.50697076,86.644,86.611,0.50894642]
[1772800334832,0.50697076,86.639,86.611,0.50894642]
[1772800335741,12.04685259,86.656,86.613,0.50894642]
[1772800336145,0.50697076,86.649,86.613,0.50894642]
[1772800336848,11.53988183,86.656,86.613,0.50894642]
[1772800337218,12.04685259,86.656,86.613,0.50894642]
[1772800337416,0.50697076,86.655,86.613,0.50894642]
[1772800337744,0.50697076,86.647,86.613,0.50894642]
[1772800339926,0.50697076,86.645,86.613,0.50894642]
[1772800340434,11.54121367,86.646,86.613,0.50894642]
[1772800340632,11.54121367,86.646,86.615,0.50894642]
[1772800340842,0.50697076,86.645,86.598,0.14216157]
[1772800341146,40.39424785,86.646,86.594,12.05709063]
[1772800341147,0.50697076,86.639,86.594,12.05709063]
[1772800341340,0.50697076,86.639,86.595,0.50894642]
[1772800341741,0.50697076,86.629,86.595,0.50894642]
[1772800342049,46.1588295,86.658,86.595,0.50894642]
[1772800342050,0.50697076,86.627,86.595,0.50894642]
[1772800342841,40.40264117,86.628,86.597,0.50894642]
[1772800343736,0.50697076,86.627,86.597,0.50894642]
[1772800343952,8.52927335,86.64,86.597,0.50894642]
[1772800343953,0.50697076,86.625,86.597,0.50894642]
[1772800345651,0.50697076,86.625,86.589,0.50894642]
[1772800347132,0.50697076,86.623,86.589,0.50894642]
[1772800348635,8.52927335,86.63,86.589,0.50894642]
[1772800348636,0.50697076,86.621,86.589,0.50894642]
[1772800349650,0.50697076,86.621,86.591,0.50894642]
[1772800350256,0.50697076,86.621,86.586,11.549169]
[1772800350257,0.50697076,86.621,86.584,0.50894642]
[1772800350644,0.50697076,86.619,86.584,0.50894642]
[1772800350853,40.40637265,86.62,86.566,0.50894642]
[1772800350854,0.50697076,86.609,86.566,0.50894642]
[1772800352650,0.50697076,86.609,86.567,0.48186464]
[1772800352845,0.51243669,86.628,86.572,0.48186464]
[1772800353148,11.54254582,86.636,86.592,0.48186464]
[1772800353458,11.54211115,86.64,86.602,0.48186464]
[1772800353754,0.51243669,86.629,86.588,0.48186464]
[1772800353988,0.51243669,86.629,86.573,0.14216157]
[1772800353989,0.51243669,86.638,86.592,0.48186464]
[1772800354136,11.54211115,86.64,86.601,0.14216157]
[1772800354460,11.54211115,86.64,86.602,0.48186464]
[1772800354846,28.85436624,86.642,86.604,0.48186464]
[1772800355243,11.54028135,86.653,86.606,0.48186464]
[1772800355546,11.54028135,86.653,86.612,0.48186464]
[1772800355860,0.51243669,86.649,86.612,0.48186464]
[1772800357754,0.51243669,86.647,86.614,0.48186464]
[1772800358854,0.51243669,86.645,86.614,0.48186464]
[1772800359356,0.51243669,86.645,86.601,0.48186464]
[1772800361260,12.05391676,86.644,86.603,0.48186464]
[1772800361558,0.51243669,86.643,86.603,0.48186464]
[1772800362936,0.51243669,86.643,86.602,40.41477101]
[1772800362937,11.54148007,86.644,86.611,0.48186464]
[1772800364042,0.51243669,86.648,86.604,0.48186464]
[1772800364437,0.51243669,86.629,86.588,0.48186464]
[1772800365143,0.51243669,86.619,86.588,0.48186464]
[1772800365351,0.51243669,86.619,86.564,3.69383402]
[1772800365352,0.51243669,86.619,86.58,12.03180849]
[1772800366161,0.51243669,86.609,86.566,0.48186464]
[1772800367156,0.51243669,86.599,86.566,0.48186464]
[1772800367342,0.51243669,86.609,86.566,0.48186464]
[1772800368347,0.51243669,86.607,86.568,0.48186464]
[1772800369459,11.54627748,86.608,86.57,0.48186464]
[1772800369756,11.54627748,86.608,86.567,40.43111115]
[1772800369757,0.51243669,86.607,86.567,12.03361068]
[1772800370059,0.51243669,86.607,86.568,0.48186464]
[1772800370444,0.51243669,86.605,86.57,0.48186464]
[1772800372163,0.51243669,86.599,86.562,51.94]
[1772800373465,8.52927335,86.59,86.562,51.94]
[1772800373658,0.51243669,86.589,86.553,0.48186464]
[1772800373865,0.51243669,86.579,86.545,0.48186464]
[1772800374060,0.42648471,86.603,86.526,0.48186464]
[1772800374061,0.51243669,86.567,86.526,0.48186464]
[1772800374757,11.5516126,86.568,86.528,0.49971227]
[1772800374960,11.5516126,86.568,86.532,0.49971227]
[1772800375164,0.48546914,86.567,86.532,0.49971227]
[1772800376171,11.5516126,86.568,86.534,0.49971227]
[1772800377983,0.48546914,86.573,86.536,0.49971227]
[1772800379478,2.10555451,86.58,86.537,0.49971227]
[1772800379670,11.45798844,86.6,86.541,0.49971227]
[1772800379671,8.52927335,86.6,86.541,0.49971227]
[1772800379869,40.41617108,86.599,86.543,0.49971227]
[1772800380162,40.41617108,86.599,86.545,0.49971227]
[1772800380374,46.17001609,86.637,86.552,0.14216157]
[1772800380581,8.52927335,86.62,86.561,0.49971227]
[1772800381486,0.18964315,86.619,86.561,0.49971227]
[1772800382081,8.52927335,86.61,86.563,0.47865743]
[1772800382289,0.18932225,86.609,86.563,0.47865743]
[1772800382990,40.40730563,86.618,86.563,0.47865743]
[1772800382991,0.18932225,86.599,86.563,0.47865743]
[1772800384572,0.18869147,86.597,86.536,28.889476]
[1772800384778,0.18869147,86.579,86.547,0.47865743]
[1772800384979,0.18869147,86.579,86.538,0.47865743]
[1772800385285,0.18838151,86.569,86.538,0.47865743]
[1772800386489,0.18807511,86.567,86.519,0.47865743]
[1772800386707,40.43064411,86.568,86.521,0.47865743]
[1772800386708,0.18807511,86.559,86.521,0.47865743]
[1772800387481,40.43064411,86.568,86.521,0.47865743]
[1772800387881,0.18777222,86.575,86.521,0.47865743]
[1772800387882,0.18777222,86.59,86.524,0.14216157]
[1772800388186,0.18777222,86.59,86.541,0.47865743]
[1772800388486,11.54881104,86.589,86.543,0.47865743]
[1772800389474,11.54881104,86.589,86.545,0.47865743]
[1772800389673,11.54881104,86.589,86.54,0.47865743]
[1772800389674,0.18717685,86.579,86.54,0.47865743]
[1772800391388,8.53518033,86.58,86.54,0.47865743]
[1772800391778,11.55014495,86.579,86.542,0.47865743]
[1772800392388,11.55014495,86.579,86.543,0.47865743]
[1772800395396,11.54921118,86.586,86.545,0.47865743]
[1772800395695,11.54859285,86.591,86.548,0.14216157]
[1772800395997,11.54859285,86.591,86.551,0.47865743]
[1772800396881,0.18519811,86.589,86.551,0.47865743]
[1772800397684,11.54894442,86.588,86.553,0.47865743]
[1772800398718,11.73360595,86.588,86.553,0.47865743]
[1772800399081,0.18439785,86.587,86.553,0.47865743]
[1772800399786,11.54921118,86.586,86.555,0.47865743]
[1772800400899,0.1841372,86.592,86.557,0.47865743]
[1772800401099,11.54780884,86.597,86.557,0.47865743]
[1772800402188,0.18362485,86.596,86.557,0.47865743]
[1772800404002,0.18337308,86.594,86.559,0.47865743]
[1772800406103,0.18263499,86.589,86.559,0.47865743]
[1772800406402,0.18263499,86.589,86.554,11.55338513]
[1772800406590,0.18263499,86.589,86.555,0.47865743]
[1772800407999,11.54894442,86.588,86.556,11.5532141]
[1772800408196,11.54894442,86.588,86.557,0.47865743]
[1772800408592,0.18215695,86.587,86.557,0.47865743]
[1772800410689,11.54921118,86.586,86.559,0.47865743]
[1772800411010,11.5486489,86.591,86.559,0.47865743]
[1772800412514,0.18100908,86.599,86.561,0.46049329]
[1772800412810,0.18100908,86.589,86.561,0.46049329]
[1772800414098,0.18100908,86.589,86.504,163.7]
[1772800414299,0.18056818,86.579,86.539,0.46049329]
[1772800414503,0.18056818,86.577,86.541,0.46049329]
[1772800416915,0.18013734,86.575,86.543,0.46049329]
[1772800417404,0.48303321,86.569,86.52,28.89482028]
[1772800417715,0.48303321,86.569,86.521,0.42648471]
[1772800417904,0.48303321,86.569,86.521,0.14216157]
[1772800418216,0.48303321,86.569,86.521,0.42648471]
[1772800418509,0.48303321,86.569,86.52,28.89482028]
[1772800418707,0.48303321,86.567,86.514,3.69383402]
[1772800418905,0.48303321,86.559,86.512,0.14216157]
[1772800419100,0.48303321,86.559,86.512,0.28432314]
[1772800419510,40.43064411,86.568,86.513,0.46049329]
[1772800419699,0.48303321,86.567,86.513,0.46049329]
[1772800421499,0.48303321,86.559,86.515,0.46049329]
[1772800423711,0.48303321,86.557,86.517,0.46049329]
[1772800425705,0.48303321,86.549,86.512,0.46049329]
[1772800425928,0.48303321,86.555,86.512,0.46049329]
[1772800427010,0.48303321,86.549,86.512,0.46049329]
[1772800427208,0.48303321,86.539,86.51,0.1]
[1772800427525,0.48303321,86.549,86.512,0.46049329]
[1772800427830,12.03726459,86.549,86.514,0.46049329]
[1772800428129,0.48303321,86.548,86.514,0.46049329]
[1772800428631,0.48303321,86.539,86.51,0.1]
[1772800429011,0.48303321,86.529,86.51,0.1]
[1772800430310,0.48303321,86.527,86.5,0.1]
[1772800430803,0.48303321,86.519,86.5,0.1]
[1772800431008,0.48303321,86.519,86.481,0.46049329]
[1772800432412,0.43751997,86.517,86.483,0.46049329]
[1772800432818,11.55828844,86.518,86.483,0.46049329]
[1772800433831,0.43734399,86.532,86.483,0.46049329]
[1772800434035,0.43699807,86.539,86.485,0.46049329]
[1772800434432,0.43699807,86.529,86.487,0.46159678]
[1772800435030,0.43699807,86.519,86.487,0.46159678]
[1772800435337,0.43699807,86.519,86.456,0.14216157]
[1772800435338,0.43682808,86.509,86.475,11.56393274]
[1772800435519,144.4452148,86.538,86.466,0.46159678]
[1772800435520,0.43682808,86.499,86.466,0.46159678]
[1772800435720,0.43682808,86.499,86.449,0.46159678]
[1772800436641,0.33666004,86.497,86.451,0.46159678]
[1772800438241,0.33632974,86.489,86.451,0.46159678]
[1772800438532,0.33632974,86.487,86.453,0.46159678]
[1772800439734,11.56256503,86.486,86.453,0.46159678]
[1772800439925,0.33616743,86.485,86.453,0.46159678]
[1772800440119,11.56082729,86.499,86.455,0.46159678]
[1772800440434,0.33600698,86.518,86.456,0.46159678]
[1772800440625,0.33600698,86.509,86.456,0.46159678]
[1772800441024,40.45354199,86.519,86.455,0.28432314]
[1772800441025,11.55815485,86.519,86.459,0.46159678]
[1772800441336,11.55815485,86.519,86.465,0.46159678]
[1772800441740,11.55815485,86.519,86.464,0.14216157]
[1772800441741,11.55815485,86.519,86.466,40.4783383]
[1772800441925,11.55815485,86.519,86.467,0.49391931]
[1772800443235,11.55728553,86.526,86.467,0.49391931]
[1772800443427,11.8919666,86.531,86.471,0.14216157]
[1772800443633,11.8919666,86.531,86.474,0.49391931]
[1772800443835,11.8919666,86.531,86.476,0.49391931]
[1772800444729,0.33523196,86.538,86.478,0.49391931]
[1772800444930,12.25037123,86.548,86.483,0.49391931]
[1772800445147,0.33508226,86.547,86.485,0.49391931]
[1772800445549,0.33508226,86.539,86.485,0.49391931]
[1772800445847,0.33508226,86.529,86.487,0.49391931]
[1772800446927,0.33493428,86.519,86.449,0.49391931]
[1772800447271,0.33493428,86.519,86.455,0.49391931]
[1772800447552,0.33478799,86.509,86.455,0.49391931]
[1772800447979,3.42020732,86.51,86.457,0.49391931]
[1772800447980,0.33478799,86.507,86.457,0.49391931]
[1772800448153,11.55962454,86.508,86.457,0.49391931]
[1772800448154,0.33464339,86.499,86.457,0.49391931]
[1772800449848,0.33450045,86.489,86.437,0.49391931]
[1772800450268,0.33450045,86.489,86.438,0.49391931]
[1772800452674,0.33408139,86.487,86.44,0.49391931]
[1772800454080,0.33380999,86.503,86.442,0.49391931]
[1772800454369,0.33380999,86.503,86.444,0.49391931]
[1772800454370,11.56070266,86.5,86.444,0.49391931]
[1772800454574,0.33380999,86.497,86.446,0.49391931]
[1772800455966,11.8938088,86.505,86.446,0.49391931]
[1772800456582,11.56015906,86.504,86.453,0.49391931]
[1772800456887,0.33354478,86.503,86.455,0.49391931]
[1772800457071,0.33341445,86.499,86.455,0.49391931]
[1772800458075,11.55868924,86.515,86.456,0.14216157]
[1772800458253,0.33328563,86.524,86.463,0.49391931]
[1772800458463,0.33328563,86.524,86.453,0.42648471]
[1772800458464,11.55762051,86.523,86.467,0.49391931]
[1772800458757,0.33328563,86.522,86.467,0.49391931]
[1772800458960,0.33328563,86.519,86.467,0.49391931]
[1772800460690,0.33303239,86.517,86.469,0.49391931]
[1772800460985,0.33303239,86.509,86.469,0.49391931]
[1772800461177,0.33290795,86.499,86.469,0.49391931]
[1772800462882,0.33278495,86.497,86.469,12.05872719]
[1772800463064,0.33278495,86.497,86.464,11.56544323]
[1772800463776,0.33278495,86.497,86.46,11.56599375]
[1772800463974,0.33266335,86.479,86.45,0.49391931]
[1772800464156,8.55920514,86.48,86.431,0.70855364]
[1772800464157,0.33254315,86.489,86.452,0.49391931]
[1772800465170,0.33242433,86.487,86.454,0.49391931]
[1772800466281,0.33230687,86.507,86.456,0.49391931]
[1772800466606,0.33230687,86.499,86.456,0.49391931]
[1772800467872,29.23158619,86.507,86.456,0.49391931]
[1772800468079,0.33219077,86.507,86.456,0.49391931]
[1772800468279,11.55989179,86.506,86.458,0.49391931]
[1772800468483,0.332076,86.505,86.458,0.49391931]
[1772800470484,0.33185039,86.503,86.46,0.49391931]
[1772800471985,0.33162994,86.499,86.46,0.49391931]
[1772800472565,0.33162994,86.499,86.431,4.40238766]
[1772800472566,0.33152161,86.489,86.457,11.56641831]
[1772800472769,0.33152161,86.489,86.453,0.49102859]
[1772800472770,0.33152161,86.479,86.445,0.49102859]
[1772800475895,0.33120403,86.477,86.447,0.49102859]
[1772800477678,11.56363468,86.478,86.447,0.49102859]
[1772800478389,28.90671389,86.486,86.44,0.49102859]
[1772800478390,3.4220528,86.47,86.44,0.49102859]
[1772800478572,0.33089726,86.485,86.44,0.49102859]
[1772800478969,0.33079735,86.479,86.44,0.49102859]
[1772800479488,0.33079735,86.469,86.44,0.49102859]
[1772800481180,0.33060095,86.467,86.44,0.49102859]
[1772800481970,0.33060095,86.467,86.441,11.56858435]
[1772800482370,0.33060095,86.467,86.438,0.49102859]
[1772800483500,0.33040904,86.465,86.44,0.49102859]
[1772800483699,11.56523951,86.466,86.44,0.49102859]
[1772800484101,11.56283243,86.484,86.44,0.49102859]
[1772800484300,0.33031473,86.488,86.44,0.49102859]
[1772800485104,46.21240906,86.557,86.44,0.49102859]
[1772800485105,28.89163513,86.531,86.443,0.50405815]
[1772800485391,40.44886685,86.529,86.453,0.50405815]
[1772800485585,3.4220528,86.52,86.461,0.50405815]
[1772800485790,3.4220528,86.52,86.456,0.14216157]
[1772800485791,40.44886685,86.529,86.465,0.50405815]
[1772800486096,3.4220528,86.52,86.465,0.50405815]
[1772800486472,40.44886685,86.529,86.465,0.50405815]
[1772800486703,8.55140169,86.52,86.465,0.50405815]
[1772800486995,8.55140169,86.52,86.452,0.28432314]
[1772800486996,46.19010417,86.599,86.471,0.50405815]
[1772800487197,8.55140169,86.58,86.479,3.69383402]
[1772800487376,8.55140169,86.52,86.488,0.50405815]
[1772800487690,8.55140169,86.52,86.444,46.27253845]
[1772800487691,0.46289047,86.52,86.432,92.55831172]
[1772800487890,0.46289047,86.52,86.436,0.42648471]
[1772800487891,8.55140169,86.51,86.436,0.42648471]
[1772800488092,8.55140169,86.49,86.436,0.14216157]
[1772800488294,8.55140169,86.49,86.432,40.49426137]
[1772800488488,0.46289047,86.519,86.435,3.69383402]
[1772800488800,0.46289047,86.519,86.436,0.28432314]
[1772800489294,11.55828844,86.518,86.437,86.76839778]
[1772800489595,8.55140169,86.51,86.446,0.49102859]
[1772800489795,8.55140169,86.51,86.454,0.49102859]
[1772800489796,0.46289047,86.509,86.454,0.49102859]
[1772800490382,0.46289047,86.499,86.454,0.49102859]
[1772800491494,0.46289047,86.497,86.454,0.49102859]
[1772800492274,0.46289047,86.497,86.456,0.49102859]
[1772800492885,0.46289047,86.479,86.435,0.49102859]
[1772800493080,8.55140169,86.47,86.435,0.49102859]
[1772800493282,0.46289047,86.469,86.435,0.49102859]
[1772800493681,40.47740204,86.468,86.435,0.49102859]
[1772800493898,0.46289047,86.467,86.435,0.49102859]
[1772800494503,40.47740204,86.468,86.436,11.56925355]
[1772800494797,11.56497201,86.468,86.437,0.49102859]
[1772800495391,0.47731836,86.467,86.437,0.49102859]
[1772800495792,11.56523951,86.466,86.437,0.49102859]
[1772800496187,40.4783383,86.466,86.421,11.57119283]
[1772800496380,40.4783383,86.466,86.406,0.79514071]
[1772800496381,0.47731836,86.459,86.406,0.79514071]
[1772800496625,0.47731836,86.459,86.415,28.92983411]
[1772800497804,11.56630965,86.458,86.43,11.56998602]
[1772800498210,11.56566763,86.463,86.433,0.47261616]
[1772800498411,11.56447974,86.472,86.433,0.47261616]
[1772800499387,0.47731836,86.471,86.433,0.47261616]
[1772800499805,0.47731836,86.471,86.409,3.69383402]
[1772800499806,11.56497201,86.468,86.425,11.57060395]
[1772800500113,0.47731836,86.467,86.433,0.47261616]
[1772800500295,0.47731836,86.473,86.434,0.47261616]
[1772800500497,0.47731836,86.459,86.42,11.57128878]
[1772800500691,0.47731836,86.468,86.432,0.47261616]
[1772800500897,0.47731836,86.469,86.433,0.47261616]
[1772800501892,8.55140169,86.47,86.433,0.47261616]
[1772800501893,0.49173374,86.467,86.433,0.47261616]
[1772800502997,46.2474588,86.492,86.408,0.28432314]
[1772800502998,0.49173374,86.474,86.435,0.50018761]
[1772800503618,0.49173374,86.469,86.435,0.50018761]
[1772800504322,0.49173374,86.467,86.435,0.50018761]
[1772800504808,0.49173374,86.467,86.436,11.56925355]
[1772800505499,0.49173374,86.467,86.437,0.50018761]
[1772800505896,8.56233142,86.48,86.437,0.50018761]
[1772800506205,8.56233142,86.48,86.439,0.50018761]
[1772800506411,0.49173374,86.469,86.438,11.56898586]
[1772800506606,0.49173374,86.469,86.431,1.20874125]
[1772800506607,0.49173374,86.469,86.433,11.56956318]
[1772800507492,0.49173374,86.469,86.433,12.06975079]
[1772800507698,0.49173374,86.469,86.431,0.70855364]
[1772800508008,0.49173374,86.449,86.431,0.70855364]
[1772800508424,0.49173374,86.447,86.431,0.70855364]
[1772800509017,0.49173374,86.453,86.431,0.70855364]
[1772800510000,0.49173374,86.453,86.417,11.57177491]
[1772800510001,0.49173374,86.449,86.395,0.50018761]
[1772800510402,40.48401709,86.454,86.397,0.50018761]
[1772800510403,0.49173374,86.447,86.397,0.50018761]
[1772800511725,0.49173374,86.439,86.397,0.50018761]
[1772800512023,0.49173374,86.429,86.392,11.57512363]
[1772800512404,0.49173374,86.429,86.39,0.1]
[1772800512405,12.06205817,86.428,86.395,0.50018761]
[1772800512628,0.49173374,86.427,86.395,0.50018761]
[1772800512811,0.49173374,86.437,86.395,0.50018761]
[1772800513121,12.05964897,86.446,86.395,0.50018761]
[1772800513322,11.56791523,86.446,86.395,0.50018761]
[1772800513523,0.49173374,86.456,86.397,3.69383402]
[1772800513722,11.56671306,86.455,86.398,0.50018761]
[1772800513922,0.49173374,86.454,86.4,0.50018761]
[1772800514225,0.49173374,86.454,86.404,0.50018761]
[1772800514426,11.56697858,86.453,86.406,0.50018761]
[1772800515206,0.49173374,86.449,86.385,0.50018761]
[1772800515408,0.49173374,86.419,86.367,0.50018761]
[1772800515709,0.49173374,86.409,86.373,0.50018761]
[1772800516316,0.49173374,86.409,86.368,11.578339]
[1772800516521,0.49173374,86.399,86.36,0.50018761]
[1772800516723,40.50550873,86.408,86.336,12.34871465]
[1772800516724,0.49173374,86.379,86.337,0.50018761]
[1772800518603,11.57702192,86.378,86.338,11.5823855]
[1772800518814,11.57702192,86.378,86.339,0.50018761]
[1772800518815,0.49173374,86.377,86.339,0.50018761]